bitfinex/quotes_BTCUSD_20250331
["timestamp","ask_amount","ask_price","bid_price","bid_amount"]
[1743379893685,4.7e-07,82521.0,82520.0,0.88126013]
[1743379893889,4.7e-07,82521.0,82520.0,0.87883745]
[1743379894760,4.7e-07,82521.0,82520.0,0.88483745]
[1743379895129,4.7e-07,82521.0,82520.0,0.90352665]
[1743379895335,4.7e-07,82521.0,82520.0,0.75884665]
[1743379895532,4.7e-07,82521.0,82520.0,0.90356665]
[1743379896237,4.7e-07,82521.0,82520.0,1.54424665]
[1743379897464,4.7e-07,82521.0,82520.0,1.53224665]
[1743379897706,4.7e-07,82521.0,82520.0,1.53824665]
[1743379898007,4.7e-07,82521.0,82520.0,1.54424665]
[1743379899509,9.7e-07,82523.0,82522.0,0.040117]
[1743379899715,3.2e-07,82524.0,82523.0,0.259473]
[1743379899915,3.2e-07,82524.0,82523.0,0.79709868]
[1743379900345,5.2e-07,82528.0,82527.0,0.096917]
[1743379900554,3.2e-07,82533.0,82532.0,0.05465685]
[1743379900762,3.2e-07,82533.0,82532.0,0.42080318]
[1743379901175,7.2e-07,82537.0,82536.0,0.040115]
[1743379901389,7.2e-07,82537.0,82536.0,0.28037585]
[1743379901603,3.2e-07,82540.0,82539.0,0.282424]
[1743379901809,3.2e-07,82540.0,82539.0,0.83654968]
[1743379903447,3.2e-07,82540.0,82539.0,0.84254968]
[1743379904212,3.2e-07,82540.0,82539.0,0.83754968]
[1743379904414,3.2e-07,82540.0,82539.0,0.86322485]
[1743379904616,3.2e-07,82540.0,82539.0,0.87422485]
[1743379904871,3.2e-07,82540.0,82539.0,0.86922485]
[1743379905070,3.2e-07,82540.0,82539.0,0.87422485]
[1743379905296,3.2e-07,82540.0,82539.0,0.72826485]
[1743379905500,3.2e-07,82540.0,82539.0,0.99450968]
[1743379906056,3.2e-07,82540.0,82539.0,0.98850968]
[1743379906466,3.2e-07,82540.0,82539.0,0.99450968]
[1743379907053,3.2e-07,82540.0,82539.0,0.98850968]
[1743379907438,3.2e-07,82540.0,82539.0,0.71726485]
[1743379907597,3.2e-07,82540.0,82539.0,0.86306485]
[1743379907811,3.2e-07,82540.0,82539.0,1.49258485]
[1743379908014,3.2e-07,82540.0,82539.0,1.49858485]
[1743379908858,3.2e-07,82540.0,82539.0,1.49258485]
[1743379909122,3.2e-07,82540.0,82539.0,1.34678485]
[1743379909329,3.2e-07,82540.0,82539.0,1.48658485]
[1743379909499,3.2e-07,82540.0,82539.0,1.49258485]
[1743379910050,3.2e-07,82540.0,82539.0,1.34678485]
[1743379910256,3.2e-07,82540.0,82539.0,1.49854485]
[1743379910456,3.2e-07,82540.0,82539.0,1.61282968]
[1743379912550,3.2e-07,82540.0,82539.0,1.59828883]
[1743379912770,3.2e-07,82540.0,82539.0,1.05482]
[1743379913020,0.25442132,82540.0,82539.0,1.2065]
[1743379913229,0.25442132,82540.0,82539.0,1.20654]
[1743379913399,0.26549694,82540.0,82539.0,1.20654]
[1743379913638,0.34229694,82540.0,82539.0,1.20654]
[1743379913850,0.34229694,82540.0,82539.0,1.20054]
[1743379914093,0.34229994,82540.0,82539.0,0.0003362]
[1743379914309,0.3560503,82540.0,82539.0,0.0293362]
[1743379914538,0.3560503,82540.0,82539.0,0.0313362]
[1743379914796,0.3560503,82540.0,82539.0,0.0083362]
[1743379915040,0.4049503,82540.0,82539.0,0.0083362]
[1743379915298,0.4049503,82540.0,82539.0,0.0063362]
[1743379915583,0.4049503,82540.0,82539.0,0.0013362]
[1743379916058,0.4049503,82540.0,82539.0,0.0033362]
[1743379916437,0.4049503,82540.0,82539.0,0.0013362]
[1743379916745,0.4049503,82540.0,82539.0,0.0253362]
[1743379919327,0.4049503,82540.0,82539.0,0.0023362]
[1743379919558,0.4049503,82540.0,82539.0,0.0253362]
[1743379920625,0.05997594,82540.0,82539.0,0.0253362]
[1743379921038,0.01107594,82540.0,82539.0,0.07998452]
[1743379921269,0.01107594,82540.0,82539.0,0.08240738]
[1743379921444,3.2e-07,82540.0,82539.0,0.10790652]
[1743379921661,3.2e-07,82540.0,82539.0,0.09452537]
[1743379922020,3.2e-07,82540.0,82539.0,0.09352537]
[1743379922219,3.2e-07,82540.0,82539.0,0.05099205]
[1743379922444,3.2e-07,82540.0,82539.0,0.05599205]
[1743379922647,3.2e-07,82540.0,82539.0,0.0414512]
[1743379923108,3.2e-07,82540.0,82539.0,0.05599205]
[1743379923341,3.2e-07,82540.0,82539.0,0.13389205]
[1743379923593,3.2e-07,82540.0,82539.0,0.25317688]
[1743379924062,3.2e-07,82540.0,82539.0,0.13289205]
[1743379924492,3.2e-07,82540.0,82539.0,0.13689205]
[1743379924715,3.2e-07,82540.0,82539.0,0.12789205]
[1743379924938,3.2e-07,82540.0,82539.0,0.55319205]
[1743379925162,3.2e-07,82541.0,82540.0,0.64606185]
[1743379925404,3.2e-07,82541.0,82540.0,0.88663151]
[1743379926686,3.2e-07,82541.0,82540.0,0.89263151]
[1743379926896,3.2e-07,82541.0,82540.0,0.89863151]
[1743379928023,3.2e-07,82541.0,82540.0,1.52811151]
[1743379930241,3.2e-07,82541.0,82540.0,1.40782668]
[1743379930676,3.2e-07,82541.0,82540.0,1.40282668]
[1743379930857,3.2e-07,82541.0,82540.0,1.52566668]
[1743379931073,3.2e-07,82541.0,82540.0,1.338201]
[1743379931320,3.2e-07,82541.0,82540.0,1.2067]
[1743379931515,0.2680203,82541.0,82540.0,0.15792]
[1743379931723,0.2772315,82541.0,82540.0,0.18092]
[1743379932144,0.5772315,82541.0,82540.0,0.15792]
[1743379932357,0.6564315,82541.0,82540.0,0.012]
[1743379932592,0.3228135,82541.0,82540.0,0.029]
[1743379933094,0.3228135,82541.0,82540.0,0.035]
[1743379933337,0.5772315,82541.0,82540.0,0.023]
[1743379934133,0.5772315,82541.0,82540.0,0.029]
[1743379934377,0.5772315,82541.0,82540.0,0.023]
[1743379934595,0.30921152,82541.0,82540.0,0.023]
[1743379934804,0.30921152,82541.0,82540.0,0.043115]
[1743379935011,0.30921152,82541.0,82540.0,0.031]
[1743379935205,0.32132652,82541.0,82540.0,0.031]
[1743379935453,0.32132652,82541.0,82540.0,0.043115]
[1743379935454,0.00921152,82541.0,82540.0,0.043115]
[1743379935639,0.00921152,82541.0,82540.0,0.09834532]
[1743379935863,3.2e-07,82541.0,82540.0,0.09434532]
[1743379936072,3.2e-07,82541.0,82540.0,0.10488617]
[1743379936289,3.2e-07,82541.0,82540.0,0.10788617]
[1743379936503,3.2e-07,82541.0,82540.0,0.11030869]
[1743379937374,3.2e-07,82541.0,82540.0,0.05265585]
[1743379937556,3.2e-07,82541.0,82540.0,0.05565585]
[1743379937807,3.2e-07,82541.0,82540.0,0.05265585]
[1743379938009,3.2e-07,82541.0,82540.0,0.04965585]
[1743379938196,3.2e-07,82541.0,82540.0,0.06065585]
[1743379938425,3.2e-07,82541.0,82540.0,0.11264026]
[1743379938633,3.2e-07,82541.0,82540.0,0.11164026]
[1743379938858,3.2e-07,82541.0,82540.0,0.040115]
[1743379939058,3.2e-07,82541.0,82540.0,0.167275]
[1743379939472,0.00920004,82541.0,82540.0,0.034]
[1743379939671,0.01211532,82541.0,82540.0,0.18324]
[1743379939902,0.00920004,82541.0,82540.0,0.18324]
[1743379940112,0.00920004,82541.0,82540.0,0.189355]
[1743379940514,3.2e-07,82541.0,82540.0,0.28344202]
[1743379940652,3.2e-07,82541.0,82540.0,0.12920202]
[1743379940859,3.2e-07,82541.0,82540.0,0.28124202]
[1743379941479,3.2e-07,82541.0,82540.0,0.28724202]
[1743379941927,3.2e-07,82541.0,82540.0,0.30178287]
[1743379942202,3.2e-07,82541.0,82540.0,0.29578287]
[1743379942608,3.2e-07,82541.0,82540.0,0.20469585]
[1743379943082,3.2e-07,82541.0,82540.0,0.20169585]
[1743379943281,3.2e-07,82541.0,82540.0,0.20669585]
[1743379943739,3.2e-07,82541.0,82540.0,0.20369585]
[1743379944198,3.2e-07,82541.0,82540.0,0.20869585]
[1743379944417,3.2e-07,82541.0,82540.0,0.31250695]
[1743379944626,3.2e-07,82541.0,82540.0,0.30250695]
[1743379944837,3.2e-07,82541.0,82540.0,0.21069585]
[1743379947247,3.2e-07,82541.0,82540.0,0.196155]
[1743379947886,3.2e-07,82541.0,82540.0,0.1964912]
[1743379948478,3.2e-07,82541.0,82540.0,0.21103205]
[1743379950208,3.2e-07,82541.0,82540.0,0.67763205]
[1743379950416,3.2e-07,82541.0,82540.0,0.88471688]
[1743379950625,3.2e-07,82541.0,82540.0,1.34318669]
[1743379950813,3.2e-07,82541.0,82540.0,2.02748669]
[1743379951065,0.0543366,82569.0,82568.0,0.023]
[1743379951251,0.05480597,82569.0,82568.0,0.44063585]
[1743379951505,0.06131491,82569.0,82568.0,0.56092068]
[1743379951955,0.05480597,82569.0,82568.0,0.56092068]
[1743379952637,0.05480597,82569.0,82568.0,0.56692068]
[1743379953912,0.29702697,82569.0,82568.0,0.029]
[1743379954134,0.06691697,82569.0,82568.0,0.20716194]
[1743379954345,0.07348341,82569.0,82568.0,0.20716194]
[1743379954559,0.31570441,82569.0,82568.0,0.20716194]
[1743379954939,0.31570441,82569.0,82568.0,0.17816194]
[1743379955150,0.31570441,82569.0,82568.0,0.20216194]
[1743379955798,0.31570441,82569.0,82568.0,0.20116194]
[1743379956009,0.31570441,82569.0,82568.0,0.17916194]
[1743379956225,0.31570441,82569.0,82568.0,0.20216194]
[1743379956443,0.06137241,82569.0,82568.0,0.19716194]
[1743379956859,0.06137241,82569.0,82568.0,0.19816194]
[1743379957040,0.07348341,82569.0,82568.0,0.17372]
[1743379959049,0.06137241,82569.0,82568.0,0.185831]
[1743379960047,0.06137241,82569.0,82568.0,0.184831]
[1743379960251,0.06137241,82569.0,82568.0,0.187831]
[1743379960467,0.06137241,82569.0,82568.0,0.17472]
[1743379960613,0.06137241,82569.0,82568.0,0.432055]
[1743379960836,0.05480597,82569.0,82568.0,0.28465314]
[1743379961027,0.05480597,82569.0,82568.0,0.17772]
[1743379961430,0.06133888,82569.0,82568.0,0.17772]
[1743379962043,0.31567088,82569.0,82568.0,0.17772]
[1743379962455,0.06133888,82569.0,82568.0,0.17772]
[1743379963083,0.254326,82571.0,82570.0,0.023]
[1743379963295,0.01225069,82571.0,82570.0,0.023]
[1743379963502,0.25446569,82571.0,82570.0,0.023]
[1743379963683,0.254344,82565.0,82564.0,0.02439682]
[1743379964087,0.242227,82567.0,82564.0,0.02439682]
[1743379964387,0.242233,82565.0,82564.0,0.02439682]
[1743379964636,0.012111,82565.0,82564.0,0.02439682]
[1743379964817,0.01211,82570.0,82569.0,0.023]
[1743379965054,0.254328,82570.0,82569.0,0.023]
[1743379965258,0.254344,82565.0,82564.0,0.02639682]
[1743379965461,0.334828,82570.0,82564.0,0.04939682]
[1743379965462,0.0805,82570.0,82564.0,0.04939682]
[1743379965675,0.00014069,82571.0,82569.0,0.023]
[1743379965894,0.00014069,82571.0,82570.0,0.023]
[1743379965895,0.01225069,82571.0,82570.0,0.023]
[1743379966478,0.00014069,82571.0,82570.0,0.023]
[1743379967628,0.00014069,82571.0,82570.0,0.024]
[1743379967839,0.00014069,82571.0,82570.0,0.025]
[1743379968190,0.01225069,82571.0,82570.0,0.002]
[1743379968624,0.01225069,82571.0,82570.0,0.025]
[1743379970421,0.00014069,82571.0,82570.0,0.03711]
[1743379970669,0.00014069,82571.0,82570.0,0.0916881]
[1743379971650,0.00014069,82571.0,82570.0,0.09310996]
[1743379971884,0.00014069,82571.0,82570.0,0.09710996]
[1743379972071,0.00014069,82571.0,82570.0,0.11165081]
[1743379972349,0.00014069,82571.0,82570.0,0.10922895]
[1743379973027,0.00014069,82571.0,82570.0,0.05365085]
[1743379973327,0.00014069,82571.0,82570.0,0.05765085]
[1743379973523,0.00014069,82571.0,82570.0,0.04965085]
[1743379973923,0.00014069,82571.0,82570.0,0.05465085]
[1743379974292,0.00014069,82571.0,82570.0,0.05965085]
[1743379975075,0.00014069,82571.0,82570.0,0.14074016]
[1743379977326,0.00014069,82571.0,82570.0,0.05965085]
[1743379978065,0.00014069,82571.0,82570.0,0.13755085]
[1743379978520,0.00014069,82571.0,82570.0,0.04511]
[1743379978749,0.00014069,82571.0,82570.0,0.19211]
[1743379979538,0.00014069,82571.0,82570.0,0.18711]
[1743379979788,0.00014069,82571.0,82570.0,0.18211]
[1743379979980,0.00014069,82571.0,82570.0,0.18711]
[1743379980185,0.00014069,82571.0,82570.0,0.19211]
[1743379980585,0.00014069,82571.0,82570.0,0.19207]
[1743379981030,0.00014069,82571.0,82570.0,0.17996]
[1743379981269,0.00014069,82571.0,82570.0,0.033]
[1743379981442,0.25446569,82571.0,82570.0,0.033]
[1743379981574,0.2600095,82571.0,82570.0,0.033]
[1743379981783,0.2600095,82571.0,82570.0,0.01]
[1743379982333,0.5600095,82571.0,82570.0,0.01]
[1743379982542,0.6378095,82571.0,82570.0,0.005]
[1743379982949,0.6378095,82571.0,82570.0,0.009]
[1743379983305,0.31211,82570.0,82569.0,0.0003362]
[1743379983714,0.32681475,82570.0,82569.0,0.0003362]
[1743379984550,0.02681475,82570.0,82569.0,0.0003362]
[1743379985796,0.02681475,82570.0,82569.0,2e-07]
[1743379985797,1.16923975,82570.0,82569.0,2e-07]
[1743379986035,0.48337875,82570.0,82569.0,2e-07]
[1743379986445,0.52342303,82570.0,82569.0,2e-07]
[1743379986859,0.012115,82541.0,82540.0,0.0003362]
[1743379987101,0.012115,82541.0,82540.0,0.0233362]
[1743379987311,0.55975812,82541.0,82540.0,0.0233362]
[1743379988038,0.55975812,82541.0,82540.0,0.0263362]
[1743379988247,0.55975812,82541.0,82540.0,0.02680557]
[1743379989642,0.55975812,82541.0,82540.0,0.02980557]
[1743379991256,0.55975812,82541.0,82540.0,0.00680557]
[1743379991473,0.55975812,82541.0,82540.0,0.02980557]
[1743379991709,0.57343013,82541.0,82540.0,0.02980557]
[1743379993587,0.08246646,82541.0,82540.0,0.02980557]
[1743379993930,0.01901213,82541.0,82540.0,0.02980557]
[1743379994546,0.03112713,82541.0,82540.0,0.02980557]
[1743379996587,0.27343013,82541.0,82540.0,0.00680557]
[1743379997225,0.39543013,82541.0,82540.0,0.00680557]
[1743379997425,0.69543013,82541.0,82540.0,0.00680557]
[1743379997626,0.69543013,82541.0,82540.0,0.00380557]
[1743379997835,0.69543013,82541.0,82540.0,0.00480557]
[1743379998444,0.69543013,82541.0,82540.0,0.00180557]
[1743379998862,0.69543013,82541.0,82540.0,0.00280557]
[1743379999069,0.69543013,82541.0,82540.0,0.00080557]
[1743379999403,0.69643013,82541.0,82540.0,0.00080557]
[1743380000015,0.69743013,82541.0,82540.0,0.00080557]
[1743380001183,0.32665585,82540.0,82539.0,7.7e-07]
[1743380001431,0.44636217,82540.0,82539.0,7.7e-07]
[1743380002584,0.44836217,82540.0,82539.0,7.7e-07]
[1743380003306,0.45136217,82540.0,82539.0,7.7e-07]
[1743380003751,0.44836217,82540.0,82539.0,7.7e-07]
[1743380004135,0.44836217,82540.0,82499.0,0.0003364]
[1743380004136,0.012121,82500.0,82499.0,0.0003364]
[1743380004340,0.012121,82500.0,82499.0,0.00047715]
[1743380004341,0.554545,82500.0,82499.0,0.00047715]
[1743380004721,0.56906249,82500.0,82499.0,0.00047715]
[1743380005699,0.56906249,82500.0,82499.0,0.00147715]
[1743380006095,0.58224429,82500.0,82499.0,0.00047715]
[1743380006303,0.58324429,82500.0,82499.0,0.00047715]
[1743380006510,0.58424429,82500.0,82499.0,0.00047715]
[1743380006683,0.58424429,82500.0,82494.0,0.0003364]
[1743380006684,0.012121,82495.0,82494.0,0.0003364]
[1743380007084,0.01724099,82495.0,82494.0,0.0003364]
[1743380008351,0.01824099,82495.0,82494.0,0.0003364]
[1743380009168,0.01924099,82495.0,82494.0,0.0003364]
[1743380016007,0.56167899,82495.0,82494.0,0.0003364]
[1743380025914,0.35192086,82495.0,82494.0,0.0003364]
[1743380026130,0.95874086,82495.0,82494.0,0.0003364]
[1743380026339,1.05017086,82495.0,82494.0,4e-07]
[1743380026611,0.55724163,82495.0,82494.0,4e-07]
[1743380027261,0.57410985,82492.0,82491.0,4e-07]
[1743380027566,0.64440962,82492.0,82491.0,4e-07]
[1743380028411,0.60707385,82492.0,82491.0,4e-07]
[1743380028575,0.57410985,82492.0,82491.0,4e-07]
[1743380028729,0.56910985,82492.0,82491.0,4e-07]
[1743380028933,0.57410985,82492.0,82491.0,4e-07]
[1743380029799,0.57810985,82492.0,82491.0,4e-07]
[1743380030041,0.57710985,82492.0,82491.0,4e-07]
[1743380030453,0.57710985,82492.0,82491.0,0.0003374]
[1743380030632,0.562569,82492.0,82491.0,0.0003374]
[1743380032071,0.567431,82492.0,82491.0,0.0003374]
[1743380033852,0.554597,82483.0,82482.0,0.0001682]
[1743380034099,0.554597,82483.0,82482.0,0.00030901]
[1743380035773,0.556597,82483.0,82482.0,0.00030901]
[1743380036670,0.558597,82483.0,82482.0,0.00030901]
[1743380040063,0.558597,82483.0,82482.0,0.08290901]
[1743380040795,0.556597,82483.0,82482.0,0.08290901]
[1743380041041,0.314123,82483.0,82482.0,0.12910901]
[1743380041248,0.315123,82483.0,82482.0,0.12910901]
[1743380041418,0.313123,82483.0,82482.0,0.12910901]
[1743380041835,0.314123,82483.0,82482.0,0.12910901]
[1743380043439,0.314123,82483.0,82482.0,0.08290901]
[1743380043651,0.302,82483.0,82482.0,0.08290901]
[1743380044100,0.314123,82483.0,82482.0,0.08290901]
[1743380044506,0.312123,82483.0,82482.0,0.08290901]
[1743380045783,0.312123,82483.0,82482.0,0.08390901]
[1743380046663,0.3,82483.0,82482.0,0.08390901]
[1743380046877,0.012123,82487.0,82482.0,0.08390901]
[1743380046878,0.242431,82498.0,82486.0,0.023]
[1743380047088,0.012122,82488.0,82487.0,0.0462]
[1743380047689,0.312122,82488.0,82487.0,0.0462]
[1743380047900,0.542459,82488.0,82487.0,0.0462]
[1743380048104,0.554581,82488.0,82487.0,0.0462]
[1743380049217,0.554581,82488.0,82486.0,0.023]
[1743380049218,0.012123,82487.0,82486.0,0.023]
[1743380049437,0.012123,82487.0,82482.0,0.08290901]
[1743380049438,0.312123,82483.0,82482.0,0.08290901]
[1743380050076,0.312123,82483.0,82482.0,0.10590901]
[1743380050280,0.312123,82483.0,82482.0,0.08290901]
[1743380050503,0.312123,82483.0,82482.0,0.10590901]
[1743380050716,0.3,82485.0,82484.0,0.023]
[1743380051767,0.3,82490.0,82486.0,0.023]
[1743380051986,0.3,82490.0,82487.0,0.0826]
[1743380052400,0.3,82490.0,82488.0,0.0498]
[1743380052607,0.3,82490.0,82489.0,0.023]
[1743380052809,0.0001685,82495.0,82489.0,0.1011]
[1743380053030,0.0001685,82495.0,82490.0,0.1011]
[1743380054292,0.5426185,82491.0,82490.0,0.1011]
[1743380054530,0.5547405,82491.0,82490.0,0.24586]
[1743380054963,0.5547405,82491.0,82490.0,0.16776]
[1743380055852,0.5547405,82491.0,82490.0,0.16976]
[1743380056155,0.5547405,82491.0,82490.0,0.16776]
[1743380056532,0.5547405,82491.0,82490.0,0.16876]
[1743380058830,0.5547405,82491.0,82490.0,0.14576]
[1743380059025,0.5547405,82491.0,82490.0,0.16876]
[1743380060667,0.5547405,82491.0,82490.0,0.001]
[1743380060875,0.5877045,82491.0,82490.0,0.001]
[1743380061087,0.62504027,82491.0,82490.0,0.001]
[1743380061445,2.3905795,82491.0,82490.0,0.001]
[1743380061651,2.11702824,82491.0,82490.0,0.001]
[1743380061950,0.254597,82483.0,82482.0,0.00030901]
[1743380063106,0.469025,82483.0,82482.0,0.00030901]
[1743380063310,0.469025,82483.0,82482.0,0.00230901]
[1743380063729,0.74778,82483.0,82482.0,0.00230901]
[1743380064110,0.74778,82483.0,82482.0,0.00082752]
[1743380064732,0.74778,82483.0,82475.0,0.02027195]
[1743380064733,0.554618,82476.0,82475.0,0.02027195]
[1743380065120,0.554653,82465.0,82464.0,0.0781]
[1743380065538,0.3,82465.0,82464.0,0.09837195]
[1743380065733,0.31281771,82465.0,82464.0,0.09837195]
[1743380066433,0.31381771,82465.0,82464.0,0.10237195]
[1743380066754,0.31481771,82465.0,82464.0,0.10237195]
[1743380069006,0.56947071,82465.0,82464.0,0.0821]
[1743380070010,0.31481771,82465.0,82464.0,0.10237195]
[1743380071677,0.302,82465.0,82464.0,0.13246515]
[1743380071789,0.302,82465.0,82464.0,0.10237195]
[1743380072034,0.302,82465.0,82464.0,0.35702795]
[1743380072245,0.302,82465.0,82464.0,0.10237195]
[1743380077478,0.302,82465.0,82464.0,0.10270895]
[1743380083580,0.302,82465.0,82464.0,0.11483495]
[1743380085460,0.002,82465.0,82464.0,0.1293758]
[1743380085663,0.002,82465.0,82464.0,0.32486048]
[1743380085876,0.002,82465.0,82464.0,0.3224358]
[1743380093139,0.002,82465.0,82464.0,0.275457]
[1743380094371,0.002,82465.0,82464.0,0.517987]
[1743380094580,0.002,82465.0,82464.0,0.55038495]
[1743380095011,0.002,82465.0,82464.0,0.275457]
[1743380095432,0.002,82465.0,82464.0,0.149057]
[1743380096412,0.002,82465.0,82464.0,0.16932895]
[1743380096619,0.002,82465.0,82464.0,0.149057]
[1743380100252,0.314126,82465.0,82464.0,0.004337]
[1743380101097,0.34903006,82465.0,82464.0,0.004337]
[1743380101324,0.34803006,82465.0,82464.0,0.004337]
[1743380101530,0.3,82470.0,82464.0,0.02060895]
[1743380101734,0.58953852,82469.0,82468.0,0.02027195]
[1743380101962,0.55464,82469.0,82468.0,0.02027195]
[1743380102204,0.312125,82468.0,82467.0,0.02027195]
[1743380102372,0.312125,82468.0,82464.0,0.000337]
[1743380102373,0.013126,82465.0,82464.0,0.002337]
[1743380102633,0.255653,82465.0,82464.0,0.02260895]
[1743380102834,0.255653,82465.0,82464.0,0.000337]
[1743380102989,0.680653,82465.0,82464.0,0.000337]
[1743380103194,0.3,82460.0,82456.0,0.0003364]
[1743380103393,0.254755,82432.0,82431.0,0.02427195]
[1743380103593,0.554755,82432.0,82431.0,0.02427195]
[1743380103797,0.554755,82432.0,82431.0,0.004]
[1743380103969,0.554755,82432.0,82431.0,0.02427195]
[1743380104407,0.554755,82432.0,82431.0,0.004]
[1743380104748,0.56756968,82432.0,82431.0,0.02427195]
[1743380104959,0.31381468,82432.0,82431.0,0.02474149]
[1743380106011,0.31381468,82432.0,82431.0,0.02674149]
[1743380106215,0.301,82432.0,82431.0,0.26936849]
[1743380106428,0.001,82432.0,82431.0,0.28149949]
[1743380106635,0.001,82432.0,82431.0,0.02674149]
[1743380107052,0.001,82432.0,82431.0,0.03887249]
[1743380107282,0.001,82432.0,82431.0,0.11629836]
[1743380107488,0.002,82432.0,82431.0,0.11387249]
[1743380107896,0.002,82432.0,82431.0,0.12841334]
[1743380108101,0.002,82432.0,82431.0,0.17581334]
[1743380109200,0.002,82432.0,82431.0,0.17823914]
[1743380109408,0.002,82432.0,82431.0,0.17581334]
[1743380110428,0.002,82432.0,82431.0,0.81633928]
[1743380110637,0.002,82432.0,82431.0,0.8189136]
[1743380111032,0.0919,82432.0,82431.0,0.82811096]
[1743380111201,0.00559103,82432.0,82431.0,0.82611096]
[1743380111542,0.00659103,82432.0,82431.0,0.82811096]
[1743380111747,0.00459103,82432.0,82431.0,0.82611096]
[1743380111948,0.00459103,82432.0,82431.0,0.82627946]
[1743380112155,3e-08,82432.0,82431.0,0.85327946]
[1743380112562,0.3,82470.0,82468.0,0.02027195]
[1743380112761,0.10847529,82471.0,82470.0,0.02027195]
[1743380112977,0.242477,82482.0,82474.0,0.01827195]
[1743380113133,0.012124,82478.0,82474.0,0.01827195]
[1743380113335,0.01332137,82475.0,82474.0,0.01827195]
[1743380113538,0.02544537,82475.0,82474.0,0.01827195]
[1743380113752,0.32544537,82475.0,82474.0,0.01874149]
[1743380115127,0.32544537,82475.0,82474.0,0.01974149]
[1743380115553,0.32529811,82475.0,82474.0,0.01974149]
[1743380117967,0.01317411,82475.0,82474.0,0.01974149]
[1743380118171,2.124e-05,82475.0,82474.0,0.29081264]
[1743380118368,2.124e-05,82475.0,82474.0,0.36831264]
[1743380118775,2.124e-05,82475.0,82474.0,0.09724149]
[1743380118978,0.012122,82489.0,82485.0,0.01827195]
[1743380119162,0.242459,82488.0,82485.0,0.01827195]
[1743380120067,0.012123,82486.0,82485.0,0.01827195]
[1743380120719,0.01254189,82488.0,82486.0,0.01827195]
[1743380120873,0.01254189,82488.0,82487.0,0.14472]
[1743380121084,0.0001685,82491.0,82487.0,0.14472]
[1743380121297,0.0001685,82491.0,82487.0,0.16299195]
[1743380121472,0.01265663,82491.0,82490.0,0.01827195]
[1743380121881,0.02477863,82491.0,82490.0,0.01827195]
[1743380122076,0.32477863,82491.0,82490.0,0.01827195]
[1743380122546,0.31265663,82491.0,82490.0,0.01827195]
[1743380122917,0.01265663,82491.0,82490.0,0.07114015]
[1743380123097,0.0001685,82491.0,82490.0,0.11031826]
[1743380123301,0.0001685,82491.0,82490.0,0.11031817]
[1743380123503,0.0001685,82491.0,82490.0,0.10789395]
[1743380124288,0.0001685,82491.0,82490.0,0.10889395]
[1743380124523,0.0001685,82491.0,82490.0,0.22817878]
[1743380124935,0.0001685,82491.0,82490.0,0.23317878]
[1743380125137,0.0001685,82491.0,82490.0,0.1274348]
[1743380125339,0.0001685,82491.0,82490.0,0.17715876]
[1743380125675,0.0001685,82491.0,82490.0,0.1747348]
[1743380125799,0.0001685,82491.0,82490.0,0.1737348]
[1743380126221,0.0001685,82491.0,82490.0,0.1676128]
[1743380126421,0.0001685,82491.0,82490.0,0.29775195]
[1743380126621,0.0001685,82491.0,82490.0,0.17395195]
[1743380126827,0.5547405,82491.0,82490.0,0.011]
[1743380127032,0.6829405,82491.0,82490.0,0.011]
[1743380127443,0.6829405,82491.0,82490.0,0.005]
[1743380127646,0.254621,82475.0,82474.0,0.01890999]
[1743380127844,0.554621,82475.0,82474.0,0.00063804]
[1743380128258,0.554621,82475.0,82474.0,4e-08]
[1743380129484,0.554621,82475.0,82474.0,0.00300004]
[1743380130258,0.554621,82475.0,82474.0,0.00500004]
[1743380130664,0.554621,82475.0,82474.0,0.00300004]
[1743380130860,0.554621,82475.0,82474.0,0.00500004]
[1743380131216,0.554621,82475.0,82474.0,4e-08]
[1743380132044,0.554621,82475.0,82474.0,0.001]
[1743380132492,0.55468,82456.0,82455.0,0.01827195]
[1743380133679,0.012129,82443.0,82442.0,0.14468]
[1743380133878,0.25472,82443.0,82442.0,0.16295195]
[1743380134078,0.25472,82443.0,82442.0,0.14468]
[1743380134282,0.25473,82440.0,82439.0,0.63]
[1743380134480,0.01213,82440.0,82439.0,0.77468]
[1743380135216,0.242582,82447.0,82441.0,0.01827195]
[1743380135414,0.242582,82447.0,82439.0,0.77474836]
[1743380135415,0.242582,82447.0,82445.0,0.01827195]
[1743380135748,0.242582,82447.0,82445.0,0.01727195]
[1743380135949,0.02518062,82446.0,82445.0,0.01727195]
[1743380136153,0.012129,82443.0,82442.0,0.004]
[1743380137090,0.01213,82440.0,82439.0,0.77474836]
[1743380137294,0.01213,82440.0,82439.0,0.79202031]
[1743380137492,0.01213,82440.0,82439.0,0.00506836]
[1743380137840,0.01213,82440.0,82439.0,0.01734031]
[1743380138117,0.01213,82440.0,82439.0,6.836e-05]
[1743380138778,0.02104413,82440.0,82439.0,0.00506836]
[1743380138984,0.02204413,82440.0,82439.0,0.01006836]
[1743380139593,0.02204413,82440.0,82439.0,0.00506836]
[1743380140423,0.02104413,82440.0,82439.0,6.836e-05]
[1743380140630,0.02104413,82440.0,82439.0,0.00106836]
[1743380142020,0.312129,82442.0,82439.0,0.00106836]
[1743380142249,0.012127,82455.0,82445.0,0.01727195]
[1743380142371,0.254706,82448.0,82445.0,0.01727195]
[1743380142577,0.554712,82446.0,82445.0,0.01727195]
[1743380144471,0.3,82446.0,82445.0,0.01827195]
[1743380145123,0.3,82446.0,82445.0,0.01927195]
[1743380145733,0.312129,82446.0,82445.0,0.01927195]
[1743380147496,0.554712,82446.0,82445.0,0.01927195]
[1743380148119,0.554712,82446.0,82445.0,0.01944025]
[1743380149871,0.554712,82446.0,82445.0,0.0021683]
[1743380151174,0.554712,82446.0,82445.0,0.0011683]
[1743380151392,0.554712,82446.0,82445.0,0.0001683]
[1743380151601,0.555712,82446.0,82445.0,0.0001683]
[1743380151828,0.556712,82446.0,82445.0,0.0001683]
[1743380152473,0.556712,82446.0,82445.0,0.01744025]
[1743380152474,0.302,82446.0,82445.0,0.01744025]
[1743380152680,0.002,82446.0,82445.0,0.06617531]
[1743380152886,0.002,82446.0,82445.0,0.12741616]
[1743380153296,0.001,82446.0,82445.0,0.20911616]
[1743380153632,0.002,82446.0,82445.0,0.20911616]
[1743380154056,0.001,82446.0,82445.0,0.20911616]
[1743380154297,0.012126,82465.0,82462.0,0.01727195]
[1743380154513,0.312126,82463.0,82462.0,0.01627195]
[1743380154684,0.312126,82463.0,82462.0,0.15999195]
[1743380155152,0.312126,82463.0,82462.0,0.15899195]
[1743380155788,0.312126,82463.0,82462.0,0.16299195]
[1743380155991,0.312126,82463.0,82462.0,0.15899195]
[1743380156626,0.312126,82463.0,82462.0,0.01927195]
[1743380156958,0.312126,82463.0,82462.0,0.005]